bitfinex-derivatives/quotes_SOLF0:USTF0_20241105
["timestamp","ask_amount","ask_price","bid_price","bid_amount"]
[1730844082082,4.0361,165.95,165.88,11.57364647]
[1730844082887,3.0139,165.91,165.88,11.57364647]
[1730844083485,4.0361,165.95,165.88,11.57364647]
[1730844083486,3.0136,165.93,165.88,11.57364647]
[1730844083691,4.0361,165.95,165.88,11.57364647]
[1730844084595,2.6585,165.95,165.88,11.57364647]
[1730844085303,3.0134,165.94,165.9,11.57364647]
[1730844085899,3.9848,165.99,165.9,11.57364647]
[1730844086197,3.9848,165.99,165.92,11.57364647]
[1730844086198,3.0131,165.96,165.92,11.57364647]
[1730844086400,0.3342,166.0,165.92,11.57364647]
[1730844086705,3.0124,165.99,165.94,11.57364647]
[1730844086896,0.3342,166.0,165.96,11.57364647]
[1730844087295,3.3464,166.0,165.96,11.57364647]
[1730844088508,0.3342,166.0,165.96,11.57364647]
[1730844089293,0.3342,166.0,165.93,2.7306]
[1730844089498,0.3342,166.0,165.95,11.57364647]
[1730844090299,3.0126,165.98,165.95,11.57364647]
[1730844090600,0.3342,166.0,165.93,11.57364647]
[1730844090806,3.0128,165.97,165.93,11.57364647]
[1730844091009,0.3342,166.0,165.93,11.57364647]
[1730844091395,3.013,165.96,165.93,11.57364647]
[1730844091805,0.3342,166.0,165.93,11.57364647]
[1730844093197,3.0128,165.97,165.93,11.57364647]
[1730844093398,0.3342,166.0,165.93,11.57364647]
[1730844093600,3.0136,165.93,165.89,11.57364647]
[1730844093810,0.3342,166.0,165.89,14.91364647]
[1730844094111,3.34,165.99,165.89,14.91364647]
[1730844094901,3.0135,165.93,165.89,14.91364647]
[1730844096510,3.0137,165.92,165.89,14.91364647]
[1730844097300,3.0138,165.91,165.89,11.57364647]
[1730844097603,3.0138,165.91,165.81,1.352]
[1730844097604,14.91364647,165.99,165.87,14.91364647]
[1730844097805,14.91364647,165.99,165.87,11.57364647]
[1730844099209,3.0138,165.91,165.87,11.57364647]
[1730844099408,6.98560032,166.02,165.89,11.57364647]
[1730844099608,14.93364647,166.01,165.92,11.57364647]
[1730844100709,3.0133,165.94,165.92,11.57364647]
[1730844101703,4.0158,166.02,165.92,11.57364647]
[1730844101914,3.36,166.01,165.94,11.57364647]
[1730844102514,3.0128,165.97,165.94,11.57364647]
[1730844105617,3.36,166.01,165.94,11.57364647]
[1730844105820,3.36,166.01,165.96,11.57364647]
[1730844106526,3.0126,165.98,165.94,11.57364647]
[1730844106726,3.36,166.01,165.94,11.57364647]
[1730844108118,3.0123,165.99,165.94,11.57364647]
[1730844108416,3.36,166.01,165.94,11.57364647]
[1730844109323,3.0128,165.97,165.94,11.57364647]
[1730844111625,3.0129,165.96,165.94,11.57364647]
[1730844114830,3.36,166.01,165.92,11.57364647]
[1730844115033,3.0132,165.95,165.92,11.57364647]
[1730844116238,3.0133,165.94,165.92,11.57364647]
[1730844117235,3.0133,165.94,165.9,11.57364647]
[1730844117638,11.57364647,166.0,165.9,11.57364647]
[1730844117939,11.57364647,166.0,165.88,11.57364647]
[1730844118337,11.57364647,165.98,165.88,11.57364647]
[1730844120241,3.0137,165.92,165.88,11.57364647]
[1730844122339,3.36,165.95,165.88,11.57364647]
[1730844122945,3.0137,165.92,165.88,11.57364647]
[1730844123445,3.36,165.95,165.88,11.57364647]
[1730844123647,14.93364647,165.95,165.8,3.36]
[1730844123845,11.57364647,165.93,165.83,11.57364647]
[1730844124355,3.0146,165.87,165.83,11.57364647]
[1730844125245,3.015,165.85,165.83,11.57364647]
[1730844125444,3.015,165.85,165.8,14.93364647]
[1730844125639,3.36,165.9,165.8,11.57364647]
[1730844128140,3.0148,165.86,165.8,11.57364647]
[1730844128445,11.15747454,165.95,165.8,11.57364647]
[1730844128644,3.36,165.94,165.77,6.3762]
[1730844128843,11.57364647,165.92,165.81,11.57364647]
[1730844129253,3.0148,165.86,165.81,11.57364647]
[1730844129638,11.57364647,165.97,165.81,11.57364647]
[1730844129639,15.02306948,166.11,165.81,11.57364647]
[1730844129845,4.34985641,165.97,165.77,3.36]
[1730844130044,11.57364647,165.92,165.81,11.57364647]
[1730844130244,3.32,165.91,165.81,11.57364647]
[1730844130743,11.57364647,165.89,165.83,2.80240695]
[1730844130941,11.57364647,165.89,165.82,2.80240695]
[1730844131151,11.57364647,165.89,165.83,1.82878714]
[1730844131357,11.57364647,165.89,165.82,2.80240695]
[1730844131548,11.57364647,165.89,165.79,33.38728003]
[1730844131549,11.57364647,165.89,165.8,2.80240695]
[1730844131864,11.57364647,165.89,165.81,1.8278093]
[1730844132150,3.0156,165.82,165.78,11.2096278]
[1730844132343,3.32,165.85,165.79,4.62946365]
[1730844132547,3.32,165.85,165.77,2.80240695]
[1730844132743,3.32,165.85,165.78,1.82686086]
[1730844132945,3.0155,165.82,165.76,14.37605342]
[1730844133152,3.32,165.85,165.77,1.81984672]
[1730844133651,3.0155,165.82,165.75,2.80240695]
[1730844133846,3.0155,165.82,165.76,11.57364647]
[1730844135843,3.0157,165.81,165.76,11.57364647]
[1730844136147,3.32,165.85,165.76,11.57364647]
[1730844136644,3.0159,165.8,165.71,6.12240695]
[1730844136845,43.42,165.95,165.75,11.57364647]
[1730844137048,11.57364647,165.87,165.75,11.57364647]
[1730844137246,3.32,165.86,165.75,11.57364647]
[1730844137851,11.57364647,165.84,165.73,11.57364647]
[1730844138051,3.32,165.86,165.71,350.3407]
[1730844138052,11.57364647,165.82,165.71,350.3407]
[1730844138247,3.32,165.81,165.71,347.0207]
[1730844138641,3.32,165.81,165.71,350.0381]
[1730844139047,11.57364647,165.8,165.69,14.59144647]
[1730844140354,11.5904699,165.8,165.67,3.32]
[1730844140551,3.32,165.81,165.64,7.3207]
[1730844140552,11.5904699,165.76,165.64,7.3207]
[1730844140747,3.32,165.75,165.64,18.9111699]
[1730844142352,3.32,165.75,165.64,15.5911699]
[1730844142553,4.6583,165.75,165.64,15.5911699]
[1730844144663,1.3383,165.75,165.64,15.5911699]
[1730844144962,3.32,165.74,165.65,3.0184]
[1730844145354,3.32,165.74,165.64,15.5911699]
[1730844145657,43.44,165.88,165.67,11.5904699]
[1730844145858,11.5904699,165.8,165.7,11.5904699]
[1730844146160,4.6193,165.79,165.7,11.5904699]
[1730844148864,3.32,165.78,165.7,11.5904699]
[1730844150063,3.32,165.78,165.7,14.39287685]
[1730844150260,3.32,165.78,165.71,1.92183751]
[1730844150459,3.32,165.78,165.7,14.39324806]
[1730844150759,4.6193,165.79,165.72,11.59084111]
[1730844150965,3.32,165.79,165.72,11.59084111]
[1730844151462,2.94966199,165.81,165.72,11.59084111]
[1730844151663,3.32,165.8,165.72,11.59084111]
[1730844154666,2.99203331,165.82,165.72,11.59084111]
[1730844154858,3.32,165.81,165.72,11.59084111]
[1730844156068,14.61214595,165.83,165.72,11.59084111]
[1730844156265,3.32,165.82,165.72,11.59084111]
[1730844156665,3.32,165.82,165.74,11.59084111]
[1730844166173,3.32,165.82,165.73,3.32]
[1730844166976,14.91084111,165.82,165.73,3.32]
[1730844167272,14.91084111,165.82,165.72,11.59084111]
[1730844167273,14.90771671,165.82,165.72,11.58771671]
[1730844167981,7.41718688,165.8,165.74,7.41718688]
[1730844169273,7.41718688,165.8,165.73,7.41718688]
[1730844171382,7.41718688,165.78,165.71,4.0401]
[1730844171576,7.41718688,165.78,165.71,11.45728688]
[1730844173580,7.41718688,165.77,165.71,11.45728688]
[1730844175884,10.63718688,165.77,165.71,11.45728688]
[1730844176385,10.63718688,165.77,165.71,10.08318688]
[1730844176685,7.41718688,165.75,165.69,7.41718688]
[1730844177583,7.41718688,165.76,165.69,7.41718688]
[1730844180082,7.41718688,165.76,165.65,4.3206]
[1730844180381,7.41718688,165.74,165.66,1.2774]
[1730844180588,3.22,165.77,165.66,8.69458688]
[1730844180589,7.41718688,165.73,165.66,8.69458688]
[1730844181577,7.41718688,165.73,165.65,1.3022]
[1730844181780,3.22,165.77,165.65,1.3022]
[1730844181781,19.455,165.78,165.66,7.41718688]
[1730844181990,3.22,165.77,165.66,1.2823]
[1730844182184,7.41718688,165.72,165.66,8.69948688]
[1730844182883,7.41718688,165.72,165.66,1.2823]
[1730844183095,7.41718688,165.72,165.66,8.69948688]
[1730844183280,3.07334741,165.75,165.68,7.41718688]
[1730844183483,7.41718688,165.74,165.68,7.41718688]
[1730844183788,7.41718688,165.73,165.66,1.2823]
[1730844183982,7.41718688,165.73,165.66,8.69948688]
[1730844184392,7.41718688,165.73,165.67,7.41718688]
[1730844184990,7.41718688,165.73,165.63,1.3056]
[1730844185189,7.41718688,165.73,165.67,7.41718688]
[1730844185885,7.41718688,165.74,165.68,7.41718688]
[1730844186890,7.41718688,165.74,165.65,2.5346]
[1730844187081,7.41718688,165.74,165.68,7.41718688]
[1730844187282,7.41718688,165.69,165.62,0.23363]
[1730844187485,7.41718688,165.67,165.62,0.23363]
[1730844187787,1.2615,165.73,165.63,7.41718688]
[1730844187989,7.41718688,165.71,165.65,7.41718688]
[1730844190795,3.18,165.73,165.69,7.41718688]
[1730844192695,3.18,165.73,165.65,1.2886]
[1730844192696,3.18,165.76,165.7,7.41718688]
[1730844193990,7.41718688,165.74,165.67,7.41718688]
[1730844194896,7.41718688,165.72,165.66,7.41718688]
[1730844195498,7.41718688,165.67,165.64,1.2985]
[1730844195710,21.15173256,165.76,165.64,1.2985]
[1730844195711,7.41718688,165.66,165.64,1.2985]
[1730844196591,7.41718688,165.67,165.64,1.2985]
[1730844198500,3.18,165.68,165.64,8.71568688]
[1730844198698,7.41718688,165.7,165.64,8.71568688]
[1730844198895,3.02173256,165.76,165.66,7.41718688]
[1730844199197,10.59718688,165.73,165.66,7.41718688]
[1730844199409,10.59718688,165.73,165.66,8.67198688]
[1730844200493,7.41718688,165.73,165.67,7.41718688]
[1730844200701,10.59718688,165.75,165.69,7.41718688]
[1730844200896,7.41718688,165.75,165.69,7.41718688]
[1730844204100,7.41718688,165.75,165.66,4.273]
[1730844204101,7.41718688,165.73,165.68,7.41718688]
[1730844205199,7.41718688,165.73,165.66,1.2548]
[1730844205503,7.41718688,165.73,165.68,7.41718688]
[1730844207807,0.59718688,165.76,165.68,7.41718688]
[1730844208002,7.41718688,165.74,165.68,7.41718688]
[1730844210805,29.91157554,165.81,165.69,7.41718688]
[1730844211003,7.41718688,165.76,165.69,7.41718688]
[1730844211302,7.41718688,165.76,165.7,1.3356]
[1730844211708,7.41718688,165.76,165.71,8.69118688]
[1730844212009,7.41718688,165.78,165.71,8.69118688]
[1730844214815,7.41718688,165.86,165.77,7.41718688]
[1730844215112,1.02761621,165.85,165.8,7.41718688]
[1730844215311,7.41718688,165.86,165.8,7.41718688]
[1730844215610,1.02764651,165.85,165.8,7.41718688]
[1730844215811,7.41718688,165.86,165.8,7.41718688]
[1730844216312,10.1195175,165.87,165.81,7.41718688]
[1730844216503,1.02774652,165.86,165.81,7.41718688]
[1730844217110,8.4449334,165.86,165.78,2.606]
[1730844217309,7.41718688,165.86,165.79,7.41718688]
[1730844217516,7.41718688,165.84,165.78,13.20318688]
[1730844219610,7.41718688,165.83,165.78,2.606]
[1730844219810,7.41718688,165.83,165.78,1.3387]
[1730844222017,9.08249162,165.88,165.78,1.3387]
[1730844222218,7.41718688,165.83,165.78,1.3387]
[1730844226917,7.41718688,165.83,165.78,8.75588688]
[1730844229017,7.41718688,165.82,165.75,3.22]
[1730844229221,7.41718688,165.8,165.75,10.63718688]
[1730844230228,7.41718688,165.8,165.75,7.41718688]
[1730844231532,7.41718688,165.77,165.73,3.9296]
[1730844231833,7.41718688,165.76,165.71,7.41718688]
[1730844233338,3.22,165.84,165.75,7.41718688]
[1730844233636,3.22,165.84,165.77,7.41718688]
[1730844233827,7.41718688,165.83,165.77,7.41718688]
[1730844235535,7.41718688,165.82,165.77,7.41718688]
[1730844240334,7.41718688,165.79,165.75,1.3197]
[1730844240740,3.22,165.84,165.75,1.3197]
[1730844240936,7.41718688,165.79,165.75,1.3197]
[1730844241337,3.22,165.84,165.75,8.73688688]
[1730844241533,7.41718688,165.82,165.76,7.41718688]
[1730844242540,7.41718688,165.82,165.75,8.73688688]
[1730844244738,7.41718688,165.79,165.75,1.3197]
[1730844246544,0.63718688,165.84,165.75,1.3197]
[1730844246846,7.41718688,165.79,165.75,1.3197]
[1730844247739,7.41718688,165.77,165.73,1.3566]
[1730844248043,7.41718688,165.76,165.71,10.63718688]
[1730844248844,7.41718688,165.76,165.71,7.41718688]
[1730844249035,7.41718688,165.77,165.71,7.41718688]
[1730844250246,7.41718688,165.77,165.72,7.41718688]
[1730844251343,7.41718688,165.79,165.72,7.41718688]
[1730844252244,7.41718688,165.77,165.72,7.41718688]
[1730844252444,7.41718688,165.77,165.7,11.79048688]
[1730844254240,7.41718688,165.76,165.7,4.3733]
[1730844254440,7.41718688,165.76,165.7,11.79048688]
[1730844256237,7.41718688,165.76,165.7,1.2733]
[1730844257644,0.63718688,165.8,165.7,1.2733]
[1730844257948,7.41718688,165.76,165.7,1.2733]
[1730844260445,7.41718688,165.76,165.69,7.41718688]
[1730844260843,7.41718688,165.74,165.69,7.41718688]
[1730844261945,7.41718688,165.74,165.68,10.07568688]
[1730844262342,7.41718688,165.72,165.68,10.07568688]
[1730844263841,1.3638,165.79,165.68,10.07568688]
[1730844263842,1.3638,165.79,165.71,7.41718688]
[1730844264048,7.41718688,165.8,165.75,7.41718688]
[1730844264244,3.1,165.81,165.75,7.41718688]
[1730844264449,7.41718688,165.8,165.75,7.41718688]
[1730844265345,29.83959991,165.85,165.77,7.41718688]
[1730844265654,7.41718688,165.82,165.77,7.41718688]
[1730844266754,20.75857346,165.83,165.77,7.41718688]
[1730844266948,7.41718688,165.83,165.77,7.41718688]
[1730844269048,28.19009092,165.83,165.77,7.41718688]
[1730844269250,7.41718688,165.82,165.77,7.41718688]
[1730844270452,28.19756904,165.82,165.77,7.41718688]
[1730844270750,7.41718688,165.83,165.77,7.41718688]
[1730844271652,29.88337485,165.87,165.82,7.41718688]
[1730844271853,7.41718688,165.89,165.82,7.41718688]
[1730844272057,1.02694113,165.88,165.82,10.51718688]
[1730844272454,7.41718688,165.89,165.82,10.51718688]
[1730844272752,1.02696962,165.88,165.82,10.51718688]
[1730844272956,7.41718688,165.89,165.82,10.51718688]
[1730844273251,1.02698636,165.88,165.82,10.51718688]
[1730844273458,30.92137757,165.88,165.82,10.51718688]
[1730844273756,10.65255213,165.87,165.82,10.51718688]
[1730844273951,7.41718688,165.86,165.79,1.502]
[1730844274158,7.41718688,165.86,165.8,3.1]
[1730844274553,20.78851546,165.88,165.8,10.51718688]
[1730844274755,18.06973901,165.87,165.81,1.4396]
[1730844275256,7.41718688,165.87,165.81,1.4396]
[1730844275659,18.06973901,165.87,165.81,1.4396]
[1730844275860,7.41718688,165.87,165.81,1.4396]
[1730844276256,18.06973901,165.87,165.81,1.4396]
[1730844276457,7.41718688,165.87,165.81,1.4396]
[1730844276962,18.06973901,165.87,165.81,1.4396]
[1730844277259,7.41718688,165.87,165.81,1.4396]
[1730844277656,18.06973901,165.87,165.81,1.4396]
[1730844277852,7.41718688,165.87,165.81,1.4396]
[1730844278557,18.06973901,165.87,165.81,1.4396]
[1730844278758,7.41718688,165.87,165.81,1.4396]
[1730844279259,7.41718688,165.85,165.81,1.4396]
[1730844279959,7.41718688,165.84,165.81,1.4396]
[1730844282558,7.41718688,165.84,165.8,3.06]
[1730844283555,19.7545878,165.89,165.8,3.06]
[1730844283864,7.41718688,165.86,165.8,3.06]
[1730844284862,9.10012564,165.89,165.81,7.41718688]
[1730844285151,7.41718688,165.86,165.81,7.41718688]
[1730844287458,7.41718688,165.84,165.8,3.06]
[1730844287764,7.41718688,165.83,165.77,8.88638688]
[1730844287966,7.41718688,165.83,165.79,3.06]
[1730844289160,7.41718688,165.83,165.75,344.2907]
[1730844289366,7.41718688,165.83,165.76,7.41718688]
[1730844291262,19.73632025,165.86,165.8,7.41718688]
[1730844291470,18.15,166.0,165.83,7.41718688]
[1730844291471,7.41718688,165.89,165.83,7.41718688]
[1730844293272,27.13639316,165.89,165.83,7.41718688]
[1730844293466,10.63435493,165.88,165.83,7.41718688]
[1730844293666,2.98039215,165.92,165.83,7.41718688]
[1730844293667,7.41718688,165.89,165.83,7.41718688]
[1730844294663,32.80224364,165.92,165.83,7.41718688]
[1730844294866,30.8350734,165.91,165.83,7.41718688]
[1730844295069,7.41718688,165.89,165.83,7.41718688]
[1730844295973,29.80461115,165.94,165.86,7.41718688]
[1730844296277,19.07358691,165.93,165.86,7.41718688]
[1730844296569,3.06,165.98,165.86,3.06]
[1730844296570,7.41718688,165.91,165.86,3.06]
[1730844301078,10.63103156,165.93,165.86,3.06]
[1730844301378,7.41718688,165.91,165.86,3.06]
[1730844301977,7.41718688,165.88,165.83,344.4665]
[1730844302167,7.41718688,165.87,165.83,343.0]
[1730844303077,7.41718688,165.84,165.83,343.0]
[1730844303272,7.41718688,165.84,165.79,3.06]
[1730844303968,7.41718688,165.82,165.77,10.47718688]
[1730844304778,7.41718688,165.79,165.74,9.88168688]
[1730844304979,10.90661644,165.85,165.74,7.41718688]
[1730844305180,7.41718688,165.81,165.75,7.41718688]
[1730844311384,6.07345444,165.85,165.77,7.41718688]
[1730844311578,3.05029896,165.94,165.8,7.41718688]
[1730844311579,3.06,165.87,165.8,7.41718688]
[1730844311882,7.41718688,165.85,165.8,7.41718688]
[1730844315881,7.41718688,165.85,165.77,346.06]
[1730844315882,7.41718688,165.85,165.79,7.41718688]
[1730844316786,7.41718688,165.85,165.8,7.41718688]
[1730844317888,7.41718688,165.85,165.77,346.06]
[1730844322692,3.06,165.87,165.77,349.0763]
[1730844322885,10.47718688,165.87,165.77,349.0763]
[1730844323086,7.41718688,165.87,165.77,349.0763]
[1730844323488,7.803,165.92,165.83,7.41718688]
[1730844323694,7.41718688,165.9,165.83,10.47718688]
[1730844324792,7.41718688,165.91,165.85,7.41718688]
[1730844324990,15.8500995,165.96,165.85,7.41718688]
[1730844325193,7.41718688,165.92,165.85,7.41718688]
[1730844326692,7.41718688,165.92,165.86,7.41718688]
[1730844327590,5.7406,165.96,165.86,7.41718688]
[1730844327802,7.41718688,165.94,165.88,7.41718688]
[1730844329694,5.7178,165.97,165.88,7.41718688]
[1730844329895,7.41718688,165.95,165.88,7.41718688]
[1730844330094,3.06,165.98,165.89,7.41718688]
[1730844330294,7.41718688,165.95,165.89,7.41718688]
[1730844330706,13.15391753,166.0,165.91,7.41718688]
[1730844330890,7.41718688,165.97,165.91,10.47718688]
[1730844331990,2.6476,166.02,165.91,3.06]
[1730844332198,7.41718688,165.99,165.92,7.41718688]
[1730844332391,7.41718688,165.99,165.92,350.41718688]
[1730844333099,2.6476,166.02,165.92,350.41718688]
[1730844333100,7.41718688,165.97,165.92,343.0]
[1730844334300,7.41718688,165.95,165.92,343.0]
[1730844335003,7.41718688,165.97,165.92,343.0]
[1730844335199,7.41718688,165.98,165.92,350.41718688]
[1730844335804,7.41718688,165.98,165.92,7.41718688]
[1730844337603,7.41718688,165.99,165.92,7.41718688]
[1730844338602,7.41718688,165.99,165.93,7.41718688]
[1730844342809,7.41718688,165.99,165.92,7.41718688]
[1730844343006,7.41718688,165.97,165.93,3.06]
[1730844345111,7.41718688,165.99,165.93,3.06]
[1730844347813,7.41718688,166.0,165.94,7.41718688]
[1730844353414,7.41718688,166.0,165.94,350.41718688]
[1730844358415,5.59015135,166.05,165.95,7.41718688]
[1730844358416,7.41718688,166.02,165.95,7.41718688]
[1730844358709,7.41718688,166.0,165.94,350.41718688]
[1730844362424,11.17555135,166.05,165.94,350.41718688]
[1730844366020,11.17555135,166.05,165.95,7.41718688]
[1730844366223,11.17555135,166.05,165.95,9.96738688]
[1730844366224,7.41718688,166.02,165.95,9.96738688]
[1730844369936,7.41718688,166.02,165.96,7.41718688]
[1730844370132,7.41718688,166.02,165.97,3.06]
[1730844372027,3.06,166.05,165.97,3.06]
[1730844372333,7.41718688,166.05,165.97,10.47718688]
[1730844372521,7.41718688,166.05,165.97,3.06]
[1730844372729,7.41718688,166.05,165.98,7.41718688]
[1730844375429,7.41718688,166.05,165.97,3.06]
[1730844375430,7.41718688,166.05,165.99,7.41718688]
[1730844375737,7.7364,166.11,165.99,7.41718688]
[1730844375738,17.54609068,166.09,166.04,7.41718688]
[1730844376137,7.41718688,166.09,166.03,7.41718688]
[1730844376939,7.41718688,166.06,166.02,3.06]
[1730844377931,7.41718688,166.06,166.01,7.41718688]
[1730844378122,7.41718688,166.02,165.99,343.0]
[1730844380129,7.41718688,166.02,165.96,353.47718688]
[1730844381235,10.1289038,166.09,165.96,353.47718688]
[1730844381445,7.41718688,166.03,165.97,2.7112]
[1730844386841,7.41718688,166.01,165.96,346.06]
[1730844387034,7.41718688,166.0,165.96,343.0]
[1730844387839,7.41718688,166.0,165.93,10.47718688]
[1730844387840,7.41718688,166.0,165.93,353.47718688]
[1730844390333,3.70763079,165.99,165.93,353.47718688]
[1730844390538,3.70763079,165.98,165.93,353.47718688]
[1730844390742,3.70763079,165.97,165.93,350.41718688]
[1730844391050,3.70763079,165.96,165.93,350.41718688]
[1730844391250,3.70763079,165.95,165.93,350.41718688]
[1730844391549,3.70763079,165.94,165.93,350.41718688]
[1730844392945,9.91641073,165.94,165.93,350.41718688]
[1730844393340,10.08992397,165.94,165.93,350.41718688]
[1730844396946,7.41718688,165.99,165.93,350.41718688]
[1730844397140,10.10459458,165.98,165.93,350.41718688]
[1730844397448,10.10459458,165.97,165.93,350.41718688]
[1730844397648,10.10459458,165.96,165.93,350.41718688]
[1730844397845,10.10459458,165.95,165.93,350.41718688]
[1730844398051,10.10459458,165.94,165.93,350.41718688]
[1730844398456,10.10459458,165.94,165.88,343.0]
[1730844398655,17.52178146,165.93,165.88,353.47718688]
[1730844398951,10.10459458,165.92,165.88,353.47718688]
[1730844399145,10.10459458,165.91,165.88,353.47718688]
[1730844399348,10.10459458,165.9,165.88,353.47718688]
[1730844399548,10.10459458,165.89,165.88,353.47718688]
[1730844400448,10.10862541,165.89,165.88,353.47718688]
[1730844404452,10.10862541,165.89,165.88,346.06]
[1730844406657,10.10862541,165.89,165.88,343.0]
[1730844407554,10.10006025,165.89,165.88,343.0]
[1730844409753,10.10006025,165.89,165.87,346.04]
[1730844409953,10.10006025,165.88,165.87,346.04]
[1730844410149,10.10006025,165.88,165.86,343.0]
[1730844410351,7.41718688,165.9,165.86,343.0]
[1730844410352,10.10006025,165.87,165.86,343.0]
[1730844410557,10.10006025,165.87,165.86,350.41718688]
[1730844410860,10.08620533,165.87,165.86,350.41718688]
[1730844414463,10.08620533,165.87,165.86,343.0]
[1730844416052,10.08620533,165.87,165.84,343.0]
[1730844416256,17.50339221,165.86,165.84,343.0]
[1730844416466,10.08620533,165.85,165.84,343.0]
[1730844417661,17.50339221,165.85,165.79,343.0]
[1730844417868,3.04,165.88,165.79,343.0]
[1730844417869,7.41718688,165.83,165.79,343.0]
[1730844418265,3.87930974,165.82,165.79,343.0]
[1730844418463,3.87930974,165.81,165.79,343.0]
[1730844418669,10.08620533,165.8,165.79,343.0]
[1730844419167,7.41718688,165.83,165.79,343.0]
[1730844420556,7.41718688,165.82,165.79,343.0]
[1730844420955,17.46747773,165.82,165.79,343.0]
[1730844421262,10.05028786,165.81,165.79,343.0]
[1730844421564,10.05028786,165.81,165.76,2.6051]
[1730844421565,3.86549533,165.8,165.76,345.6051]
[1730844421868,3.86549533,165.79,165.76,345.6051]
[1730844422070,11.28268336,165.82,165.76,345.6051]
[1730844422254,10.03903852,165.81,165.76,345.6051]
[1730844422460,3.86116866,165.8,165.76,345.6051]
[1730844422755,3.86116866,165.79,165.76,345.6051]
[1730844422955,10.03903854,165.81,165.77,7.41718688]
[1730844423265,3.86116972,165.8,165.77,7.41718688]
[1730844423464,3.86116972,165.79,165.77,7.41718688]
[1730844423763,3.86549648,165.82,165.77,7.41718688]
[1730844423969,10.03429076,165.81,165.77,7.41718688]
[1730844424271,3.8593426,165.8,165.77,7.41718688]
[1730844424469,3.8593426,165.79,165.77,7.41718688]
[1730844424768,3.86549648,165.82,165.77,7.41718688]
[1730844424963,10.02962776,165.81,165.77,7.41718688]
[1730844425163,3.85754914,165.8,165.77,7.41718688]
[1730844425362,3.85754914,165.79,165.77,7.41718688]
[1730844425563,3.86549648,165.82,165.77,7.41718688]
[1730844425761,10.02655594,165.81,165.77,7.41718688]
[1730844425962,3.85636767,165.8,165.77,7.41718688]
[1730844426159,3.04,165.88,165.77,7.41718688]
[1730844426160,17.4439625,165.82,165.77,7.41718688]
[1730844426359,10.02334793,165.81,165.77,7.41718688]
[1730844426559,3.85513382,165.8,165.77,7.41718688]
[1730844426762,10.02367713,165.81,165.77,7.41718688]
[1730844426960,3.85559496,165.8,165.79,7.41718688]
[1730844427164,10.02488421,165.83,165.79,7.41718688]
[1730844427360,10.0248435,165.82,165.79,7.41718688]
[1730844427568,10.0248435,165.83,165.79,350.41718688]
[1730844427767,7.41718688,165.84,165.79,350.41718688]
[1730844427768,10.02457818,165.82,165.79,350.41718688]
[1730844427970,3.85559496,165.81,165.79,350.41718688]
[1730844428267,7.41718688,165.84,165.79,350.41718688]
[1730844428671,10.02242033,165.83,165.79,350.41718688]
[1730844428873,3.85477705,165.82,165.79,350.41718688]
[1730844429257,3.85477705,165.82,165.79,343.0]
[1730844430071,11.27196393,165.82,165.79,343.0]
[1730844430267,10.02259231,165.81,165.79,343.0]
[1730844430468,17.43977919,165.81,165.79,343.0]
[1730844430773,3.85477705,165.8,165.79,343.0]
[1730844432773,7.41718688,165.81,165.79,343.0]
[1730844432977,3.85389054,165.8,165.79,343.0]
[1730844433472,3.85389054,165.8,165.76,353.02228688]
[1730844433772,7.41718688,165.81,165.76,353.02228688]
[1730844433970,3.85218819,165.8,165.76,353.02228688]
[1730844434171,7.41718688,165.81,165.76,353.02228688]
[1730844434374,3.85193614,165.8,165.76,353.02228688]
[1730844434665,7.41718688,165.81,165.76,353.02228688]
[1730844434869,7.41718688,165.79,165.76,343.0]
[1730844435073,3.85198237,165.78,165.76,343.0]
[1730844435273,3.85121092,165.77,165.73,348.701]
[1730844435575,7.41718688,165.78,165.73,348.701]
[1730844435780,3.85101232,165.77,165.73,348.701]
[1730844436073,3.85101232,165.76,165.73,348.701]
[1730844436277,7.41718688,165.78,165.73,348.701]
[1730844436472,3.85043755,165.77,165.73,348.701]
[1730844436673,7.41718688,165.79,165.74,7.41718688]
[1730844436973,10.01094178,165.78,165.74,7.41718688]
[1730844438374,10.01094178,165.78,165.73,348.701]
[1730844438575,10.01094178,165.78,165.73,356.11818688]
[1730844439680,3.85036222,165.78,165.73,356.11818688]
[1730844439876,3.85036222,165.77,165.73,5.701]
[1730844440076,7.41718688,165.79,165.73,13.11818688]
[1730844440276,3.8503855,165.78,165.73,13.11818688]
[1730844440476,3.8503855,165.77,165.73,13.11818688]
[1730844440685,7.41718688,165.79,165.73,13.11818688]
[1730844440883,3.85071711,165.78,165.73,13.11818688]
[1730844441184,3.85071711,165.77,165.73,13.11818688]